[Event "Titled Tuesday Blitz February 21 Late 2023"]
[White "Meunier-Pion, Jean"]
[Black "Gurevich, Ilya"]
[WhiteFideId "20685327"]
[BlackFideId "2000628"]
[WhiteElo "2215"]
[BlackElo "2586"]
[Result "0-1"]
[Round "02"]
[TimeControl "180+2"]
[Date "2023.02.21"]
[WhiteClock "0:00:03"]
[BlackClock "0:00:07"]

1. e4 {[%clk 0:02:57]}  c5 {[%clk 0:03:00]} 2. Nf3 {[%clk 0:02:57]}  e6 {[%clk 0:03:00]} 3. d4 {[%clk 0:02:56]}  cxd4 {[%clk 0:03:01]} 4. Nxd4 {[%clk 0:02:57]}  Nf6 {[%clk 0:03:02]} 5. Nc3 {[%clk 0:02:56]}  Nc6 {[%clk 0:03:02]} 6. Nxc6 {[%clk 0:02:57]}  bxc6 {[%clk 0:03:03]} 7. e5 {[%clk 0:02:57]}  Nd5 {[%clk 0:03:04]} 8. Ne4 {[%clk 0:02:58]}  Qc7 {[%clk 0:03:04]} 9. f4 {[%clk 0:02:58]}  Qb6 {[%clk 0:03:05]} 10. c4 {[%clk 0:02:58]}  Ne3 {[%clk 0:03:05]} 11. Qe2 {[%clk 0:02:28]}  Bb4+ {[%clk 0:03:04]} 12. Nc3 {[%clk 0:02:26]}  Nxf1 {[%clk 0:03:04]} 13. Rxf1 {[%clk 0:02:18]}  O-O {[%clk 0:03:04]} 14. Bd2 {[%clk 0:02:17]}  Be7 {[%clk 0:02:57]} 15. b3 {[%clk 0:02:14]}  d6 {[%clk 0:02:49]} 16. Ne4 {[%clk 0:02:08]}  d5 {[%clk 0:02:40]} 17. Ng3 {[%clk 0:01:53]}  Rd8 {[%clk 0:01:56]} 18. f5 {[%clk 0:01:34]}  exf5 {[%clk 0:01:41]} 19. Nxf5 {[%clk 0:01:34]}  Bxf5 {[%clk 0:01:41]} 20. Rxf5 {[%clk 0:01:34]}  dxc4 {[%clk 0:01:40]} 21. Qxc4 {[%clk 0:01:32]}  Qg1+ {[%clk 0:01:23]} 22. Rf1 {[%clk 0:01:12]}  Qxg2 {[%clk 0:01:23]} 23. Bc3 {[%clk 0:00:50]}  Kh8 {[%clk 0:01:01]} 24. Rf2 {[%clk 0:00:43]}  Qg1+ {[%clk 0:00:57]} 25. Ke2 {[%clk 0:00:44]}  Qg6 {[%clk 0:00:48]} 26. e6 {[%clk 0:00:15]}  f6 {[%clk 0:00:36]} 27. Rc1 {[%clk 0:00:12]}  Qh5+ {[%clk 0:00:34]} 28. Kf1 {[%clk 0:00:10]}  Bc5 {[%clk 0:00:27]} 29. Rxf6 {[%clk 0:00:02]}  Qh3+ {[%clk 0:00:18]} 30. Ke2 {[%clk 0:00:02]}  Qg2+ {[%clk 0:00:09]} 31. Ke1 {[%clk 0:00:01]}  Qg1+ {[%clk 0:00:04]} 32. Ke2 {[%clk 0:00:02]}  Qe3+ {[%clk 0:00:04]} 33. Kf1 {[%clk 0:00:02]}  Qg1+ {[%clk 0:00:03]} 34. Ke2 {[%clk 0:00:03]}  Qe3+ {[%clk 0:00:04]} 35. Kf1 {[%clk 0:00:03]}  Rf8 {[%clk 0:00:05]} 36. Rxf8+ {[%clk 0:00:03]}  Rxf8+ {[%clk 0:00:05]} 37. Kg2 {[%clk 0:00:03]}  Rf2+ {[%clk 0:00:05]} 38. Kh1 {[%clk 0:00:03]}  Qf3+ {[%clk 0:00:06]} 39. Kg1 {[%clk 0:00:03]}  Qg2# {[%clk 0:00:07]} 0-1


[Site "https://www.chess.com"]

[Event "Titled Tuesday Blitz February 21 Late 2023"]
[White "Davidson, Kevin"]
[Black "Jesusesmifuerza"]
[WhiteFideId "2056810"]
[WhiteElo "2154"]
[BlackElo "2009"]
[Result "1-0"]
[Round "02"]
[TimeControl "180+2"]
[Date "2023.02.21"]
[WhiteClock "0:02:05"]
[BlackClock "0:01:51"]

1. e4 {[%clk 0:03:00]}  c5 {[%clk 0:02:59]} 2. Nf3 {[%clk 0:03:00]}  e6 {[%clk 0:02:59]} 3. d4 {[%clk 0:03:00]}  cxd4 {[%clk 0:02:59]} 4. Nxd4 {[%clk 0:03:01]}  Nf6 {[%clk 0:03:00]} 5. Nc3 {[%clk 0:03:02]}  Nc6 {[%clk 0:03:00]} 6. Ndb5 {[%clk 0:03:01]}  Bc5 {[%clk 0:02:59]} 7. Nd6+ {[%clk 0:03:00]}  Ke7 {[%clk 0:02:58]} 8. Bf4 {[%clk 0:03:00]}  e5 {[%clk 0:02:57]} 9. Nf5+ {[%clk 0:03:00]}  Kf8 {[%clk 0:02:58]} 10. Bg5 {[%clk 0:03:01]}  Bb4 {[%clk 0:02:49]} 11. Bxf6 {[%clk 0:02:32]}  Qxf6 {[%clk 0:02:31]} 12. Bc4 {[%clk 0:02:32]}  Nd4 {[%clk 0:02:09]} 13. Ne3 {[%clk 0:02:10]}  d6 {[%clk 0:02:00]} 14. O-O {[%clk 0:02:09]}  Be6 {[%clk 0:01:51]} 15. Ncd5 {[%clk 0:02:05]} 1-0


[Site "https://www.chess.com"]

[Event "Titled Tuesday Blitz February 21 Late 2023"]
[White "Better_Chess_Faster"]
[Black "Rosenberg, Evan S"]
[BlackFideId "2019299"]
[WhiteElo "1982"]
[BlackElo "1956"]
[Result "0-1"]
[Round "02"]
[TimeControl "180+2"]
[Date "2023.02.21"]
[WhiteClock "0:00:28"]
[BlackClock "0:00:08"]

1. c4 {[%clk 0:03:00]}  e6 {[%clk 0:03:00]} 2. g3 {[%clk 0:03:00]}  d5 {[%clk 0:03:00]} 3. Nf3 {[%clk 0:02:59]}  c5 {[%clk 0:02:59]} 4. Bg2 {[%clk 0:02:57]}  Nc6 {[%clk 0:02:57]} 5. O-O {[%clk 0:02:56]}  d4 {[%clk 0:02:57]} 6. e3 {[%clk 0:02:55]}  Nf6 {[%clk 0:02:57]} 7. exd4 {[%clk 0:02:55]}  cxd4 {[%clk 0:02:58]} 8. Re1 {[%clk 0:02:51]}  Bd6 {[%clk 0:02:55]} 9. d3 {[%clk 0:02:48]}  h6 {[%clk 0:02:52]} 10. b4 {[%clk 0:02:41]}  Bxb4 {[%clk 0:02:49]} 11. Nbd2 {[%clk 0:02:40]}  O-O {[%clk 0:02:44]} 12. Bb2 {[%clk 0:02:39]}  Re8 {[%clk 0:02:29]} 13. Ne5 {[%clk 0:02:38]}  Nxe5 {[%clk 0:02:23]} 14. Rxe5 {[%clk 0:02:39]}  Rb8 {[%clk 0:02:20]} 15. Nf3 {[%clk 0:02:37]}  Bc3 {[%clk 0:02:04]} 16. Bxc3 {[%clk 0:02:28]}  dxc3 {[%clk 0:02:04]} 17. Qc2 {[%clk 0:02:27]}  Nd7 {[%clk 0:01:52]} 18. Re3 {[%clk 0:02:25]}  Qa5 {[%clk 0:01:37]} 19. d4 {[%clk 0:02:21]}  b5 {[%clk 0:01:32]} 20. Qxc3 {[%clk 0:02:07]}  Qxc3 {[%clk 0:01:29]} 21. Rxc3 {[%clk 0:02:07]}  bxc4 {[%clk 0:01:30]} 22. Rxc4 {[%clk 0:02:06]}  Nb6 {[%clk 0:01:26]} 23. Rc7 {[%clk 0:02:04]}  Rb7 {[%clk 0:01:16]} 24. Rac1 {[%clk 0:02:02]}  Rxc7 {[%clk 0:01:15]} 25. Rxc7 {[%clk 0:02:01]}  a6 {[%clk 0:01:10]} 26. Ne5 {[%clk 0:02:00]}  Rf8 {[%clk 0:01:10]} 27. Nc6 {[%clk 0:01:50]}  Bd7 {[%clk 0:01:06]} 28. a4 {[%clk 0:01:40]}  Bxc6 {[%clk 0:00:52]} 29. Bxc6 {[%clk 0:01:35]}  Rd8 {[%clk 0:00:46]} 30. Ra7 {[%clk 0:01:27]}  Rxd4 {[%clk 0:00:38]} 31. Rxa6 {[%clk 0:01:27]}  Nc4 {[%clk 0:00:36]} 32. Bb5 {[%clk 0:01:20]}  Ne5 {[%clk 0:00:32]} 33. Kg2 {[%clk 0:01:18]}  Rd2 {[%clk 0:00:31]} 34. h3 {[%clk 0:01:15]}  g5 {[%clk 0:00:26]} 35. Ra8+ {[%clk 0:01:14]}  Kg7 {[%clk 0:00:26]} 36. a5 {[%clk 0:01:13]}  Ra2 {[%clk 0:00:26]} 37. a6 {[%clk 0:01:13]}  g4 {[%clk 0:00:25]} 38. hxg4 {[%clk 0:01:03]}  Nxg4 {[%clk 0:00:25]} 39. a7 {[%clk 0:01:03]}  Rxf2+ {[%clk 0:00:18]} 40. Kh3 {[%clk 0:00:58]}  h5 {[%clk 0:00:18]} 41. Rg8+ {[%clk 0:00:57]}  Kf6 {[%clk 0:00:15]} 42. Rxg4 {[%clk 0:00:38]}  hxg4+ {[%clk 0:00:15]} 43. Kxg4 {[%clk 0:00:38]}  Ra2 {[%clk 0:00:15]} 44. Kf4 {[%clk 0:00:36]}  Rxa7 {[%clk 0:00:15]} 45. Bd3 {[%clk 0:00:36]}  Ra4+ {[%clk 0:00:15]} 46. Kf3 {[%clk 0:00:33]}  Kg5 {[%clk 0:00:15]} 47. Bh7 {[%clk 0:00:32]}  f5 {[%clk 0:00:14]} 48. Bg8 {[%clk 0:00:31]}  e5 {[%clk 0:00:14]} 49. Be6 {[%clk 0:00:31]}  Ra3+ {[%clk 0:00:14]} 50. Kf2 {[%clk 0:00:31]}  e4 {[%clk 0:00:12]} 51. Bc4 {[%clk 0:00:29]}  Kg4 {[%clk 0:00:11]} 52. Be6 {[%clk 0:00:27]}  Rf3+ {[%clk 0:00:10]} 53. Ke2 {[%clk 0:00:26]}  Rxg3 {[%clk 0:00:09]} 54. Kf2 {[%clk 0:00:26]}  Ra3 {[%clk 0:00:10]} 55. Ke2 {[%clk 0:00:26]}  Kf4 {[%clk 0:00:10]} 56. Kf2 {[%clk 0:00:26]}  e3+ {[%clk 0:00:10]} 57. Ke2 {[%clk 0:00:26]}  Ra6 {[%clk 0:00:07]} 58. Bd5 {[%clk 0:00:25]}  Rd6 {[%clk 0:00:07]} 59. Bb7 {[%clk 0:00:25]}  Rd2+ {[%clk 0:00:08]} 60. Ke1 {[%clk 0:00:26]}  Ke5 {[%clk 0:00:07]} 61. Bc6 {[%clk 0:00:24]}  f4 {[%clk 0:00:07]} 62. Bf3 {[%clk 0:00:25]}  Kd4 {[%clk 0:00:07]} 63. Be2 {[%clk 0:00:24]}  Rxe2+ {[%clk 0:00:06]} 64. Kxe2 {[%clk 0:00:24]}  Ke4 {[%clk 0:00:07]} 65. Ke1 {[%clk 0:00:24]}  f3 {[%clk 0:00:07]} 66. Kd1 {[%clk 0:00:24]}  Kd3 {[%clk 0:00:07]} 67. Kc1 {[%clk 0:00:24]}  e2 {[%clk 0:00:06]} 68. Kb2 {[%clk 0:00:25]}  e1=Q {[%clk 0:00:06]} 69. Kb3 {[%clk 0:00:26]}  Qc3+ {[%clk 0:00:06]} 70. Ka4 {[%clk 0:00:26]}  Qb2 {[%clk 0:00:06]} 71. Ka5 {[%clk 0:00:26]}  Kc4 {[%clk 0:00:07]} 72. Ka6 {[%clk 0:00:27]}  Kc5 {[%clk 0:00:07]} 73. Ka7 {[%clk 0:00:28]}  Kc6 {[%clk 0:00:08]} 74. Ka8 {[%clk 0:00:28]}  Qb7# {[%clk 0:00:08]} 0-1


[Site "https://www.chess.com"]

[Event "Titled Tuesday Blitz February 21 Late 2023"]
[White "Desideri, Ricardo Maruchi"]
[Black "Jian, Alex"]
[WhiteFideId "2110440"]
[BlackFideId "30901022"]
[WhiteElo "1959"]
[BlackElo "2031"]
[Result "0-1"]
[Round "02"]
[TimeControl "180+2"]
[Date "2023.02.21"]
[WhiteClock "0:00:23"]
[BlackClock "0:01:14"]

1. e4 {[%clk 0:03:00]}  c5 {[%clk 0:02:59]} 2. Nf3 {[%clk 0:02:59]}  Nc6 {[%clk 0:02:59]} 3. d4 {[%clk 0:02:58]}  cxd4 {[%clk 0:03:00]} 4. Nxd4 {[%clk 0:02:58]}  Nf6 {[%clk 0:03:01]} 5. Nc3 {[%clk 0:02:56]}  e5 {[%clk 0:03:01]} 6. Ndb5 {[%clk 0:02:54]}  d6 {[%clk 0:03:02]} 7. Nd5 {[%clk 0:02:54]}  Nxd5 {[%clk 0:03:02]} 8. exd5 {[%clk 0:02:54]}  Nb8 {[%clk 0:03:02]} 9. c4 {[%clk 0:02:43]}  Be7 {[%clk 0:03:01]} 10. Bd3 {[%clk 0:02:30]}  O-O {[%clk 0:03:01]} 11. O-O {[%clk 0:02:27]}  a6 {[%clk 0:03:00]} 12. Nc3 {[%clk 0:02:26]}  f5 {[%clk 0:03:01]} 13. f3 {[%clk 0:02:19]}  Nd7 {[%clk 0:02:59]} 14. b4 {[%clk 0:02:13]}  a5 {[%clk 0:02:50]} 15. b5 {[%clk 0:02:01]}  Nc5 {[%clk 0:02:40]} 16. Bc2 {[%clk 0:02:00]}  Bg5 {[%clk 0:02:29]} 17. Kh1 {[%clk 0:01:57]}  Qf6 {[%clk 0:02:16]} 18. Bb2 {[%clk 0:01:17]}  Qh6 {[%clk 0:02:12]} 19. Ne2 {[%clk 0:01:08]}  Be3 {[%clk 0:01:56]} 20. Qe1 {[%clk 0:00:55]}  Bd7 {[%clk 0:01:33]} 21. Qc3 {[%clk 0:00:39]}  Bd2 {[%clk 0:01:21]} 22. Qa3 {[%clk 0:00:31]}  Bb4 {[%clk 0:01:19]} 23. Bc1 {[%clk 0:00:24]}  Bxa3 {[%clk 0:01:13]} 24. Bxh6 {[%clk 0:00:23]}  gxh6 {[%clk 0:01:14]} 0-1


[Site "https://www.chess.com"]

[Event "Titled Tuesday Blitz February 21 Late 2023"]
[White "Zeman, Matyas"]
[Black "Vargas, Mauricio"]
[WhiteFideId "364398"]
[BlackFideId "4404572"]
[WhiteElo "2296"]
[BlackElo "2035"]
[Result "1-0"]
[Round "02"]
[TimeControl "180+2"]
[Date "2023.02.21"]
[WhiteClock "0:01:40"]
[BlackClock "0:00:01"]

1. d4 {[%clk 0:03:00]}  d5 {[%clk 0:02:59]} 2. Bf4 {[%clk 0:03:01]}  h5 {[%clk 0:02:55]} 3. Nf3 {[%clk 0:03:00]}  Bg4 {[%clk 0:02:55]} 4. h3 {[%clk 0:02:55]}  Bxf3 {[%clk 0:02:55]} 5. exf3 {[%clk 0:02:55]}  e6 {[%clk 0:02:55]} 6. Nd2 {[%clk 0:02:54]}  Bd6 {[%clk 0:02:55]} 7. Bxd6 {[%clk 0:02:53]}  Qxd6 {[%clk 0:02:56]} 8. h4 {[%clk 0:02:53]}  Ne7 {[%clk 0:02:54]} 9. Bd3 {[%clk 0:02:53]}  Nd7 {[%clk 0:02:48]} 10. Qe2 {[%clk 0:02:50]}  O-O-O {[%clk 0:02:45]} 11. O-O-O {[%clk 0:02:50]}  Kb8 {[%clk 0:02:44]} 12. g3 {[%clk 0:02:49]}  Rc8 {[%clk 0:02:44]} 13. f4 {[%clk 0:02:49]}  c5 {[%clk 0:02:43]} 14. dxc5 {[%clk 0:02:50]}  Nxc5 {[%clk 0:02:42]} 15. Kb1 {[%clk 0:02:50]}  Qb6 {[%clk 0:02:38]} 16. Nb3 {[%clk 0:02:50]}  Na4 {[%clk 0:02:33]} 17. Qe5+ {[%clk 0:02:45]}  Ka8 {[%clk 0:02:29]} 18. Qxg7 {[%clk 0:02:46]}  Rcf8 {[%clk 0:02:26]} 19. Qd4 {[%clk 0:02:46]}  Qxd4 {[%clk 0:02:08]} 20. Nxd4 {[%clk 0:02:47]}  a6 {[%clk 0:01:43]} 21. Nf3 {[%clk 0:02:43]}  Ng8 {[%clk 0:01:38]} 22. Ng5 {[%clk 0:02:35]}  Nf6 {[%clk 0:01:27]} 23. Be2 {[%clk 0:02:35]}  Ng4 {[%clk 0:01:20]} 24. Bxg4 {[%clk 0:02:32]}  hxg4 {[%clk 0:01:20]} 25. Rhe1 {[%clk 0:02:29]}  Nc5 {[%clk 0:01:10]} 26. f5 {[%clk 0:02:27]}  exf5 {[%clk 0:01:01]} 27. Rxd5 {[%clk 0:02:26]}  b6 {[%clk 0:00:50]} 28. Rxf5 {[%clk 0:02:26]}  f6 {[%clk 0:00:45]} 29. Ne6 {[%clk 0:01:52]}  Rc8 {[%clk 0:00:43]} 30. Nxc5 {[%clk 0:01:51]}  bxc5 {[%clk 0:00:43]} 31. Rxf6 {[%clk 0:01:51]}  Rhe8 {[%clk 0:00:35]} 32. Rxe8 {[%clk 0:01:49]}  Rxe8 {[%clk 0:00:34]} 33. b3 {[%clk 0:01:50]}  Kb7 {[%clk 0:00:31]} 34. Rf4 {[%clk 0:01:45]}  Rg8 {[%clk 0:00:26]} 35. c4 {[%clk 0:01:46]}  Kb6 {[%clk 0:00:25]} 36. Kc2 {[%clk 0:01:46]}  Ka5 {[%clk 0:00:24]} 37. a3 {[%clk 0:01:47]}  Kb6 {[%clk 0:00:24]} 38. Kd3 {[%clk 0:01:44]}  Kc6 {[%clk 0:00:22]} 39. Rf6+ {[%clk 0:01:44]}  Kb7 {[%clk 0:00:21]} 40. h5 {[%clk 0:01:45]}  Rg5 {[%clk 0:00:18]} 41. h6 {[%clk 0:01:45]}  Rh5 {[%clk 0:00:18]} 42. Ke3 {[%clk 0:01:45]}  a5 {[%clk 0:00:16]} 43. Kf4 {[%clk 0:01:44]}  Kc7 {[%clk 0:00:10]} 44. Kxg4 {[%clk 0:01:43]}  Rh2 {[%clk 0:00:08]} 45. Rf7+ {[%clk 0:01:42]}  Kd6 {[%clk 0:00:06]} 46. h7 {[%clk 0:01:43]}  Ke6 {[%clk 0:00:05]} 47. Ra7 {[%clk 0:01:44]}  Kf6 {[%clk 0:00:02]} 48. Rxa5 {[%clk 0:01:40]}  Rxh7 {[%clk 0:00:01]} 49. Rxc5 {[%clk 0:01:40]} 1-0


[Site "https://www.chess.com"]

[Event "Titled Tuesday Blitz February 21 Late 2023"]
[White "Eliteplayer3"]
[Black "Lerch, Philipp"]
[BlackFideId "4654129"]
[WhiteElo "1962"]
[BlackElo "2305"]
[Result "0-1"]
[Round "02"]
[TimeControl "180+2"]
[Date "2023.02.21"]
[WhiteClock "0:01:39"]
[BlackClock "0:01:55"]

1. e4 {[%clk 0:03:00]}  c5 {[%clk 0:02:56]} 2. Nc3 {[%clk 0:03:00]}  g6 {[%clk 0:02:56]} 3. Nf3 {[%clk 0:03:00]}  Bg7 {[%clk 0:02:56]} 4. d4 {[%clk 0:03:00]}  cxd4 {[%clk 0:02:56]} 5. Nxd4 {[%clk 0:03:01]}  Nc6 {[%clk 0:02:55]} 6. Be3 {[%clk 0:03:00]}  Nf6 {[%clk 0:02:50]} 7. Nxc6 {[%clk 0:03:00]}  bxc6 {[%clk 0:02:50]} 8. e5 {[%clk 0:03:01]}  Nd5 {[%clk 0:02:43]} 9. Nxd5 {[%clk 0:03:00]}  cxd5 {[%clk 0:02:44]} 10. Qxd5 {[%clk 0:02:58]}  Rb8 {[%clk 0:02:44]} 11. O-O-O {[%clk 0:02:57]}  O-O {[%clk 0:02:39]} 12. f4 {[%clk 0:02:49]}  Qc7 {[%clk 0:02:35]} 13. Bc4 {[%clk 0:02:45]}  d6 {[%clk 0:02:32]} 14. Bb3 {[%clk 0:02:06]}  dxe5 {[%clk 0:02:27]} 15. Qe4 {[%clk 0:02:00]}  Bf5 {[%clk 0:02:19]} 16. Qf3 {[%clk 0:01:57]}  Rxb3 {[%clk 0:02:11]} 17. Qf2 {[%clk 0:01:44]}  Rxe3 {[%clk 0:02:09]} 18. Rd2 {[%clk 0:01:41]}  exf4 {[%clk 0:02:07]} 19. Rhd1 {[%clk 0:01:39]}  Qb6 {[%clk 0:02:02]} 20. b3 {[%clk 0:01:39]}  Qa5 {[%clk 0:01:55]} 0-1


[Site "https://www.chess.com"]

[Event "Titled Tuesday Blitz February 21 Late 2023"]
[White "Gorshtein, Ido"]
[Black "Naroditsky, Daniel"]
[WhiteFideId "2815532"]
[BlackFideId "2026961"]
[WhiteElo "2514"]
[BlackElo "2618"]
[Result "0-1"]
[Round "03"]
[TimeControl "180+2"]
[Date "2023.02.21"]
[WhiteClock "0:00:20"]
[BlackClock "0:00:40"]

1. b3 {[%clk 0:03:00]}  d5 {[%clk 0:02:57]} 2. Bb2 {[%clk 0:03:01]}  Bf5 {[%clk 0:02:54]} 3. e3 {[%clk 0:02:59]}  e6 {[%clk 0:02:54]} 4. f4 {[%clk 0:03:00]}  Nf6 {[%clk 0:02:51]} 5. Nf3 {[%clk 0:03:00]}  Bd6 {[%clk 0:02:44]} 6. Be2 {[%clk 0:02:59]}  h6 {[%clk 0:02:41]} 7. O-O {[%clk 0:02:58]}  Nbd7 {[%clk 0:02:41]} 8. Ne5 {[%clk 0:02:58]}  Qe7 {[%clk 0:02:34]} 9. d3 {[%clk 0:02:55]}  Bc5 {[%clk 0:02:32]} 10. d4 {[%clk 0:02:40]}  Bd6 {[%clk 0:02:32]} 11. Nd2 {[%clk 0:02:40]}  Ne4 {[%clk 0:02:27]} 12. c4 {[%clk 0:02:36]}  Nxd2 {[%clk 0:02:23]} 13. Qxd2 {[%clk 0:02:36]}  c6 {[%clk 0:02:22]} 14. Bd3 {[%clk 0:02:30]}  Bxd3 {[%clk 0:02:16]} 15. Qxd3 {[%clk 0:02:30]}  Nf6 {[%clk 0:02:16]} 16. f5 {[%clk 0:02:25]}  O-O {[%clk 0:01:54]} 17. Rf3 {[%clk 0:02:18]}  Ne4 {[%clk 0:01:50]} 18. Raf1 {[%clk 0:02:17]}  Bxe5 {[%clk 0:01:35]} 19. dxe5 {[%clk 0:02:15]}  exf5 {[%clk 0:01:36]} 20. Rxf5 {[%clk 0:02:12]}  Rad8 {[%clk 0:01:28]} 21. cxd5 {[%clk 0:02:05]}  cxd5 {[%clk 0:01:29]} 22. Qd4 {[%clk 0:02:00]}  b6 {[%clk 0:01:25]} 23. Qd1 {[%clk 0:01:42]}  Rd7 {[%clk 0:01:14]} 24. Bd4 {[%clk 0:01:41]}  Qe6 {[%clk 0:01:13]} 25. R5f3 {[%clk 0:01:29]}  Rc8 {[%clk 0:01:09]} 26. Qd3 {[%clk 0:01:28]}  Rdc7 {[%clk 0:01:07]} 27. h3 {[%clk 0:01:27]}  Qg6 {[%clk 0:01:01]} 28. e6 {[%clk 0:00:41]}  fxe6 {[%clk 0:00:55]} 29. Kh2 {[%clk 0:00:31]}  Rc2 {[%clk 0:00:44]} 30. Rg1 {[%clk 0:00:24]}  Rd2 {[%clk 0:00:43]} 31. Qa6 {[%clk 0:00:20]}  Rcc2 {[%clk 0:00:40]} 0-1


[Site "https://www.chess.com"]

[Event "Titled Tuesday Blitz February 21 Late 2023"]
[White "Bryakin, Mikhail"]
[Black "Andreikin, Dmitry"]
[WhiteFideId "4165314"]
[BlackFideId "4158814"]
[WhiteElo "2455"]
[BlackElo "2729"]
[Result "1/2-1/2"]
[Round "03"]
[TimeControl "180+2"]
[Date "2023.02.21"]
[WhiteClock "0:00:10"]
[BlackClock "0:00:04"]

1. Nf3 {[%clk 0:03:00]}  Nf6 {[%clk 0:02:53]} 2. b3 {[%clk 0:02:59]}  d5 {[%clk 0:02:40]} 3. Bb2 {[%clk 0:02:59]}  c5 {[%clk 0:02:40]} 4. e3 {[%clk 0:02:55]}  Nc6 {[%clk 0:02:34]} 5. Bb5 {[%clk 0:02:54]}  Bd7 {[%clk 0:02:33]} 6. O-O {[%clk 0:02:50]}  Rc8 {[%clk 0:02:30]} 7. a4 {[%clk 0:02:44]}  e6 {[%clk 0:02:28]} 8. d3 {[%clk 0:02:25]}  Bd6 {[%clk 0:02:27]} 9. Bxc6 {[%clk 0:02:24]}  Bxc6 {[%clk 0:02:27]} 10. Ne5 {[%clk 0:02:24]}  O-O {[%clk 0:02:13]} 11. Nd2 {[%clk 0:02:19]}  Bxe5 {[%clk 0:02:07]} 12. Bxe5 {[%clk 0:02:19]}  Nd7 {[%clk 0:02:08]} 13. Bb2 {[%clk 0:02:07]}  e5 {[%clk 0:02:06]} 14. f4 {[%clk 0:01:55]}  Qe7 {[%clk 0:01:55]} 15. Qg4 {[%clk 0:01:15]}  f6 {[%clk 0:01:47]} 16. fxe5 {[%clk 0:01:07]}  Nxe5 {[%clk 0:01:44]} 17. Qg3 {[%clk 0:01:06]}  Rce8 {[%clk 0:01:40]} 18. Rae1 {[%clk 0:01:02]}  Kh8 {[%clk 0:01:39]} 19. Bxe5 {[%clk 0:00:50]}  Qxe5 {[%clk 0:01:37]} 20. Qxe5 {[%clk 0:00:50]}  Rxe5 {[%clk 0:01:37]} 21. d4 {[%clk 0:00:40]}  cxd4 {[%clk 0:01:37]} 22. exd4 {[%clk 0:00:40]}  Ree8 {[%clk 0:01:37]} 23. Rxe8 {[%clk 0:00:37]}  Rxe8 {[%clk 0:01:37]} 24. Kf2 {[%clk 0:00:37]}  g5 {[%clk 0:01:33]} 25. g3 {[%clk 0:00:29]}  Kg7 {[%clk 0:01:31]} 26. Re1 {[%clk 0:00:19]}  Rxe1 {[%clk 0:01:13]} 27. Kxe1 {[%clk 0:00:20]}  Kg6 {[%clk 0:01:14]} 28. Kf2 {[%clk 0:00:21]}  Kf5 {[%clk 0:01:14]} 29. Kf3 {[%clk 0:00:20]}  Be8 {[%clk 0:01:14]} 30. c4 {[%clk 0:00:14]}  dxc4 {[%clk 0:01:07]} 31. Nxc4 {[%clk 0:00:13]}  Bc6+ {[%clk 0:01:07]} 32. Ke3 {[%clk 0:00:11]}  Bd5 {[%clk 0:00:44]} 33. a5 {[%clk 0:00:11]}  Kg4 {[%clk 0:00:40]} 34. Kf2 {[%clk 0:00:11]}  Kf5 {[%clk 0:00:33]} 35. Ke3 {[%clk 0:00:11]}  h5 {[%clk 0:00:32]} 36. Nd2 {[%clk 0:00:10]}  Kg4 {[%clk 0:00:30]} 37. Kf2 {[%clk 0:00:10]}  f5 {[%clk 0:00:29]} 38. Nc4 {[%clk 0:00:05]}  f4 {[%clk 0:00:28]} 39. Nd2 {[%clk 0:00:02]}  fxg3+ {[%clk 0:00:25]} 40. hxg3 {[%clk 0:00:03]}  h4 {[%clk 0:00:26]} 41. gxh4 {[%clk 0:00:01]}  gxh4 {[%clk 0:00:27]} 42. Nf1 {[%clk 0:00:02]}  Bxb3 {[%clk 0:00:24]} 43. Ne3+ {[%clk 0:00:02]}  Kf4 {[%clk 0:00:23]} 44. Ng2+ {[%clk 0:00:02]}  Kg5 {[%clk 0:00:24]} 45. Ne3 {[%clk 0:00:01]}  Be6 {[%clk 0:00:21]} 46. d5 {[%clk 0:00:02]}  Bd7 {[%clk 0:00:21]} 47. Nc4 {[%clk 0:00:02]}  Kf4 {[%clk 0:00:17]} 48. Nd6 {[%clk 0:00:02]}  b5 {[%clk 0:00:16]} 49. axb6 {[%clk 0:00:01]}  axb6 {[%clk 0:00:17]} 50. Nc4 {[%clk 0:00:02]}  b5 {[%clk 0:00:16]} 51. Nb6 {[%clk 0:00:03]}  Bf5 {[%clk 0:00:09]} 52. d6 {[%clk 0:00:03]}  b4 {[%clk 0:00:09]} 53. Nd5+ {[%clk 0:00:04]}  Ke5 {[%clk 0:00:06]} 54. Nxb4 {[%clk 0:00:04]}  Kxd6 {[%clk 0:00:06]} 55. Kg1 {[%clk 0:00:04]}  Kc5 {[%clk 0:00:06]} 56. Na6+ {[%clk 0:00:04]}  Kb6 {[%clk 0:00:05]} 57. Nb4 {[%clk 0:00:04]}  Kc5 {[%clk 0:00:05]} 58. Na6+ {[%clk 0:00:05]}  Kd4 {[%clk 0:00:05]} 59. Kh2 {[%clk 0:00:05]}  Kc4 {[%clk 0:00:05]} 60. Nc7 {[%clk 0:00:05]}  Kc5 {[%clk 0:00:05]} 61. Ne8 {[%clk 0:00:06]}  Bd7 {[%clk 0:00:04]} 62. Nf6 {[%clk 0:00:06]}  Be6 {[%clk 0:00:05]} 63. Nh5 {[%clk 0:00:07]}  Kd4 {[%clk 0:00:05]} 64. Ng3 {[%clk 0:00:08]}  Bg4 {[%clk 0:00:04]} 65. Nf1 {[%clk 0:00:07]}  Kd3 {[%clk 0:00:04]} 66. Ng3 {[%clk 0:00:07]}  Ke3 {[%clk 0:00:04]} 67. Nh1 {[%clk 0:00:07]}  Kf3 {[%clk 0:00:04]} 68. Kg1 {[%clk 0:00:07]}  Bh3 {[%clk 0:00:04]} 69. Nf2 {[%clk 0:00:08]}  Bg2 {[%clk 0:00:05]} 70. Nh1 {[%clk 0:00:08]}  h3 {[%clk 0:00:04]} 71. Kh2 {[%clk 0:00:08]}  Kg4 {[%clk 0:00:03]} 72. Nf2+ {[%clk 0:00:09]}  Kh4 {[%clk 0:00:04]} 73. Nxh3 {[%clk 0:00:10]} 1/2-1/2


[Site "https://www.chess.com"]

[Event "Titled Tuesday Blitz February 21 Late 2023"]
[White "Caruana, Fabiano"]
[Black "Milikow, Yoav"]
[WhiteFideId "2020009"]
[BlackFideId "2822237"]
[WhiteElo "2764"]
[BlackElo "2394"]
[Result "1-0"]
[Round "03"]
[TimeControl "180+2"]
[Date "2023.02.21"]
[WhiteClock "0:00:31"]
[BlackClock "0:00:06"]

1. e4 {[%clk 0:03:00]}  e5 {[%clk 0:02:53]} 2. Nf3 {[%clk 0:03:00]}  Nf6 {[%clk 0:02:52]} 3. d4 {[%clk 0:02:58]}  Nxe4 {[%clk 0:02:52]} 4. dxe5 {[%clk 0:02:57]}  Bc5 {[%clk 0:02:48]} 5. Bc4 {[%clk 0:02:56]}  Nxf2 {[%clk 0:02:44]} 6. Bxf7+ {[%clk 0:02:55]}  Kxf7 {[%clk 0:02:45]} 7. Qd5+ {[%clk 0:02:55]}  Kg6 {[%clk 0:02:40]} 8. Qxc5 {[%clk 0:02:55]}  Nxh1 {[%clk 0:02:40]} 9. Nc3 {[%clk 0:02:50]}  h6 {[%clk 0:02:26]} 10. Bf4 {[%clk 0:02:42]}  Nc6 {[%clk 0:02:17]} 11. O-O-O {[%clk 0:02:40]}  Rf8 {[%clk 0:02:01]} 12. Qe3 {[%clk 0:02:29]}  Nf2 {[%clk 0:01:51]} 13. Rd2 {[%clk 0:02:24]}  Ng4 {[%clk 0:01:37]} 14. Qe4+ {[%clk 0:02:22]}  Kf7 {[%clk 0:01:34]} 15. h3 {[%clk 0:01:38]}  Ngxe5 {[%clk 0:01:18]} 16. Qd5+ {[%clk 0:01:30]}  Kg6 {[%clk 0:01:18]} 17. Qe4+ {[%clk 0:01:22]}  Kf7 {[%clk 0:01:18]} 18. Bxe5 {[%clk 0:00:55]}  d6 {[%clk 0:01:06]} 19. Qh7 {[%clk 0:00:45]}  Rg8 {[%clk 0:00:23]} 20. Rf2 {[%clk 0:00:44]}  dxe5 {[%clk 0:00:16]} 21. Nxe5+ {[%clk 0:00:44]}  Ke6 {[%clk 0:00:16]} 22. Qf5+ {[%clk 0:00:34]}  Kd6 {[%clk 0:00:07]} 23. Ne4+ {[%clk 0:00:33]}  Kd5 {[%clk 0:00:05]} 24. Rd2+ {[%clk 0:00:31]}  Nd4 {[%clk 0:00:06]} 25. c4# {[%clk 0:00:31]} 1-0


[Site "https://www.chess.com"]